bitfinex/quotes_SOLUSD_20250718
["timestamp","ask_amount","ask_price","bid_price","bid_amount"]
[1752865616234,17.29371403,177.08,177.04,50.11371403]
[1752865616419,0.7,177.08,177.04,50.11371403]
[1752865616605,17.29371403,177.08,177.04,50.11371403]
[1752865616810,17.29371403,177.08,177.04,33.52]
[1752865617009,16.59371403,177.08,177.04,50.11371403]
[1752865617212,5.64684623,177.09,177.05,17.29371403]
[1752865617422,5.64684623,177.09,177.05,0.7]
[1752865617643,5.64648244,177.11,177.07,16.59371403]
[1752865618019,22.24019647,177.11,177.07,16.59371403]
[1752865618253,16.59371403,177.1,177.05,16.59371403]
[1752865618449,16.59371403,177.09,177.04,16.59371403]
[1752865618652,6.34648244,177.11,177.03,0.7]
[1752865618653,16.59371403,177.08,177.05,33.42]
[1752865618960,22.24066604,177.09,177.05,33.42]
[1752865619127,5.64695201,177.09,177.05,50.01371403]
[1752865619919,17.29371403,177.08,177.0,43.48468397]
[1752865620150,17.29371403,177.08,177.01,33.36]
[1752865620320,0.7,177.07,176.96,6.35074374]
[1752865620648,16.59371403,177.02,176.96,5.65074374]
[1752865620817,16.59371403,177.02,176.97,49.95371403]
[1752865621018,6.4635,177.08,176.93,5.6518783]
[1752865621019,6.34939833,177.01,176.93,5.6518783]
[1752865621216,16.59371403,176.96,176.91,16.59371403]
[1752865621520,17.29371403,176.95,176.91,33.36]
[1752865621718,16.59371403,176.94,176.91,33.36]
[1752865621923,0.7,176.94,176.91,33.36]
[1752865622133,16.59371403,176.95,176.91,33.36]
[1752865622334,17.29371403,176.95,176.91,33.36]
[1752865622535,16.59371403,176.94,176.91,33.36]
[1752865623025,17.29371403,176.93,176.91,33.36]
[1752865623238,0.7,176.97,176.91,49.95371403]
[1752865623550,16.59371403,176.96,176.91,49.95371403]
[1752865623849,0.7,177.0,176.95,16.59371403]
[1752865624029,5.64914182,177.02,176.91,33.36]
[1752865624030,0.7,176.99,176.91,33.36]
[1752865624373,16.59371403,176.98,176.93,16.59371403]
[1752865624649,16.59371403,176.98,176.91,39.01257652]
[1752865624650,17.29371403,177.0,176.95,16.59371403]
[1752865624868,16.59371403,177.01,176.96,16.59371403]
[1752865625030,17.29371403,177.01,176.96,16.59371403]
[1752865625258,17.29371403,177.0,176.95,16.59371403]
[1752865625421,16.59371403,176.97,176.92,16.59371403]
[1752865625620,0.7,176.96,176.91,81.62623332]
[1752865625853,17.29371403,176.96,176.91,75.97371403]
[1752865626039,17.29371403,176.95,176.91,59.38]
[1752865626354,16.59371403,176.96,176.91,81.62618801]
[1752865626665,16.59371403,176.95,176.91,31.65246175]
[1752865626849,0.7,176.98,176.92,16.59371403]
[1752865627167,89.7,177.0,176.96,16.59371403]
[1752865627453,0.7,176.99,176.92,5.6521899]
[1752865627620,89.7,176.98,176.92,22.24585152]
[1752865627826,89.7,176.98,176.91,64.99253444]
[1752865627827,0.7,176.97,176.91,64.99253444]
[1752865628055,17.29371403,176.97,176.92,16.59371403]
[1752865628236,89.7,176.98,176.91,33.34]
[1752865628237,16.59371403,176.93,176.91,33.34]
[1752865628555,17.29371403,176.93,176.87,0.03]
[1752865628751,17.29371403,176.93,176.88,16.59371403]
[1752865628957,17.29371403,176.93,176.87,5.6837998]
[1752865628958,16.59371403,176.9,176.87,0.03]
[1752865629443,89.7,176.91,176.87,16.62371403]
[1752865629647,89.7,176.91,176.89,16.59371403]
[1752865629816,89.7,176.96,176.9,17.29371403]
[1752865630019,89.7,176.96,176.92,16.59371403]
[1752865630336,89.7,176.96,176.9,0.7]
[1752865630337,6.778,176.98,176.94,16.59371403]
[1752865630748,6.778,176.98,176.93,16.59371403]
[1752865630749,22.67171403,176.98,176.93,16.59371403]
[1752865631047,16.59371403,176.94,176.88,33.36]
[1752865631250,0.7,176.94,176.88,5.65324773]
[1752865631593,16.59371403,176.94,176.88,6.35324773]
[1752865631748,0.7,176.93,176.87,33.37]
[1752865631947,16.59371403,176.89,176.87,33.37]
[1752865632460,0.7,176.92,176.87,33.37]
[1752865632779,16.59371403,176.9,176.87,33.37]
[1752865633061,0.7,176.89,176.87,0.03]
[1752865633270,17.29371403,176.89,176.87,0.03]
[1752865633441,0.7,176.89,176.87,0.03]
[1752865633646,0.7,176.88,176.87,0.03]
[1752865633848,16.59371403,176.9,176.87,0.03]
[1752865634241,0.7,176.89,176.87,0.03]
[1752865634437,17.29371403,176.89,176.87,0.03]
[1752865634644,16.59371403,176.88,176.87,0.03]
[1752865634875,17.29371403,176.88,176.87,0.03]
[1752865635238,16.59371403,176.89,176.87,0.03]
[1752865635472,0.7,176.92,176.87,0.03]
[1752865635685,14.12748643,176.96,176.91,16.59371403]
[1752865635686,0.68,176.96,176.91,16.59371403]
[1752865635887,23.35171403,176.98,176.92,34.32]
[1752865636052,16.59371403,176.96,176.9,26.0]
[1752865636239,6.078,176.98,176.9,59.72]
[1752865636240,16.59371403,176.94,176.9,59.72]
[1752865636442,17.27371403,176.94,176.9,59.72]
[1752865636746,17.27371403,176.93,176.89,33.74]
[1752865636958,0.68,176.92,176.89,50.33371403]
[1752865637154,17.27371403,176.92,176.87,0.03]
[1752865637356,5.65067525,176.97,176.87,0.03]
[1752865637654,0.68,176.91,176.87,22.27750188]
[1752865637848,0.68,176.91,176.88,16.59371403]
[1752865638053,19.77736338,176.97,176.88,16.59371403]
[1752865638054,16.59371403,176.93,176.88,16.59371403]
[1752865638251,16.59371403,176.92,176.87,33.75]
[1752865638572,0.68,176.92,176.89,16.59371403]
[1752865639168,0.68,176.95,176.91,16.59371403]
[1752865639385,0.68,176.94,176.9,16.59371403]
[1752865639885,0.68,176.93,176.88,5.65347757]
[1752865640069,0.68,176.92,176.89,50.31371403]
[1752865640274,16.59371403,176.94,176.9,16.59371403]
[1752865640479,16.59371403,176.96,176.91,16.59371403]
[1752865640679,0.68,176.94,176.91,16.59371403]
[1752865640882,0.68,176.94,176.9,50.27371403]
[1752865641063,0.68,176.94,176.9,45.49133115]
[1752865641262,0.68,176.93,176.9,33.66]
[1752865641664,0.68,176.93,176.88,5.65355042]
[1752865641970,11.81133115,176.95,176.89,33.64]
[1752865642273,12.49133115,176.95,176.89,33.64]
[1752865642486,12.49133115,176.94,176.88,5.65355042]
[1752865642674,12.49133115,176.94,176.9,33.62]
[1752865642873,0.68,176.93,176.9,33.62]
[1752865643073,0.68,176.93,176.88,5.65355042]
[1752865643385,0.68,176.92,176.88,33.64]
[1752865643779,0.68,176.92,176.87,5.6838131]
[1752865643983,0.68,176.92,176.89,45.41133115]
[1752865644165,11.81133115,176.94,176.89,45.41133115]
[1752865644367,89.7,176.97,176.9,0.68]
[1752865644574,89.7,176.97,176.91,33.6]
[1752865644774,89.7,176.97,176.93,11.81133115]
[1752865644970,89.7,176.97,176.91,33.6]
[1752865644971,11.81133115,176.94,176.89,26.0]
[1752865645195,0.68,176.93,176.9,17.46424239]
[1752865645394,0.68,176.96,176.92,11.81133115]
[1752865645892,0.68,176.95,176.92,33.56]
[1752865646197,12.49133115,176.95,176.92,33.56]
[1752865646398,0.68,176.94,176.88,33.56]
[1752865646571,11.81133115,176.9,176.87,0.03]
[1752865646771,0.68,176.93,176.87,0.03]
[1752865647080,0.68,176.93,176.88,45.35133115]
[1752865647276,18.14353957,176.93,176.88,45.35133115]
[1752865647595,11.81133115,176.91,176.87,0.03]
[1752865647798,11.81133115,176.91,176.87,33.55]
[1752865648004,0.68,176.9,176.87,33.55]
[1752865648308,0.68,176.9,176.87,0.03]
[1752865648468,0.68,176.93,176.88,11.81133115]
[1752865648674,11.81133115,176.92,176.88,11.81133115]
[1752865648972,0.68,176.91,176.88,45.29133115]
[1752865649175,11.81133115,176.92,176.88,45.29133115]
[1752865649399,17.46328389,176.93,176.88,11.81133115]
[1752865649579,0.68,176.91,176.88,11.81133115]
[1752865650212,0.68,176.9,176.87,0.03]
[1752865650506,12.49133115,176.9,176.87,0.03]
[1752865650682,5.65195274,176.93,176.87,0.03]
[1752865650683,11.81133115,176.88,176.87,0.03]
[1752865650992,0.68,176.89,176.87,0.03]
[1752865651368,11.81133115,176.92,176.87,0.03]
[1752865651893,0.68,176.91,176.87,0.03]
[1752865652073,12.49133115,176.91,176.87,0.03]
[1752865652274,0.68,176.9,176.87,0.03]
[1752865652501,12.49133115,176.9,176.87,0.03]
[1752865652689,0.68,176.89,176.87,0.03]
[1752865653083,0.68,176.93,176.88,11.81133115]
[1752865653287,0.68,176.93,176.9,11.81133115]
[1752865653792,0.68,176.93,176.87,0.03]
[1752865653793,0.68,176.92,176.87,0.03]
[1752865653983,0.68,176.92,176.87,11.84133115]
[1752865654183,0.68,176.91,176.87,11.84133115]
[1752865654591,0.68,176.9,176.87,0.03]
[1752865655178,0.68,176.89,176.87,0.03]
[1752865655874,0.68,176.94,176.88,45.13133115]
[1752865656074,15.74051557,176.99,176.88,45.13133115]
[1752865656075,1.6147,176.99,176.92,11.81133115]
[1752865656372,90.38,176.97,176.94,11.81133115]
[1752865656687,96.03072233,176.97,176.94,11.81133115]
[1752865657700,6.32979707,177.0,176.96,11.81133115]
[1752865657996,6.0114,177.02,176.98,11.81133115]
[1752865658200,0.68,177.01,176.98,11.81133115]
[1752865658376,0.68,177.0,176.97,11.81133115]
[1752865658577,0.68,176.99,176.97,11.81133115]
[1752865658791,101.51133115,176.98,176.89,11.81133115]
[1752865658998,11.81133115,176.95,176.9,11.81133115]
[1752865659184,12.49133115,176.94,176.89,11.81133115]
[1752865659384,0.68,176.94,176.9,11.81133115]
[1752865659598,12.49133115,176.93,176.88,11.81133115]
[1752865659913,6.0114,176.94,176.88,11.81133115]
[1752865660089,12.49133115,176.93,176.88,11.81133115]
[1752865660304,12.49133115,176.92,176.87,45.02133115]
[1752865660497,0.68,176.91,176.87,33.21]
[1752865660692,6.33274479,176.91,176.87,45.02133115]
[1752865661003,17.46328389,176.93,176.88,11.81133115]
[1752865661210,6.33195274,176.93,176.88,11.81133115]
[1752865661423,11.66306428,176.94,176.91,11.81133115]
[1752865661888,5.65139954,176.95,176.91,11.81133115]
[1752865662693,6.33139954,176.95,176.91,11.81133115]
[1752865663692,18.14273069,176.95,176.9,11.81133115]
[1752865665009,12.49133115,176.94,176.87,0.03]
[1752865665191,11.81133115,176.89,176.87,0.03]
[1752865665513,0.68,176.93,176.88,11.81133115]
[1752865665718,11.81133115,176.92,176.88,11.81133115]
[1752865666216,11.81133115,176.92,176.87,0.03]
[1752865666386,12.50133115,176.91,176.87,0.03]
[1752865666585,11.81133115,176.89,176.87,0.03]
[1752865666780,11.81133115,176.88,176.87,0.03]
[1752865666985,18.15488157,176.88,176.87,0.03]
[1752865668087,6.34355042,176.88,176.79,11.84133115]
[1752865668290,11.81133115,176.85,176.8,11.81133115]
[1752865668599,0.69,176.84,176.8,11.81133115]
[1752865668801,11.81133115,176.84,176.8,11.81133115]
[1752865668994,0.69,176.87,176.83,11.81133115]
[1752865669202,17.46456197,176.89,176.84,11.81133115]
[1752865669402,0.69,176.88,176.83,11.81133115]
[1752865669713,0.69,176.87,176.83,11.81133115]
[1752865669912,5.65323082,176.89,176.81,5.65571316]
[1752865669913,12.50133115,176.86,176.81,11.81133115]
[1752865670215,0.69,176.85,176.81,11.81133115]
[1752865670710,0.69,176.84,176.8,11.81133115]
[1752865670920,0.69,176.84,176.81,11.81133115]
[1752865671128,90.39,176.88,176.83,11.81133115]
[1752865671313,12.50133115,176.87,176.83,11.81133115]
[1752865671484,0.69,176.86,176.8,38.43610859]
[1752865671691,0.69,176.86,176.83,11.81133115]
[1752865671901,12.50133115,176.86,176.79,38.46635743]
[1752865672116,0.69,176.85,176.81,11.81133115]
[1752865672296,0.69,176.84,176.81,11.81133115]
[1752865672494,0.69,176.83,176.79,5.68635743]
[1752865672690,0.69,176.83,176.81,11.81133115]
[1752865672891,12.50133115,176.86,176.81,11.81133115]
[1752865673099,12.50133115,176.86,176.79,5.68635743]
[1752865673100,0.69,176.85,176.79,26.03]
[1752865673319,5.65382489,176.88,176.83,11.81133115]
[1752865673517,89.7,176.89,176.86,11.81133115]
[1752865673724,6.4038,176.9,176.84,0.67]
[1752865673906,6.4038,176.9,176.88,11.81133115]
[1752865674416,0.69,176.92,176.81,0.67]
[1752865674417,0.69,176.89,176.81,0.67]
[1752865674628,0.69,176.89,176.84,11.81133115]
[1752865675118,0.69,176.88,176.86,11.81133115]
[1752865675706,0.69,176.91,176.87,11.81133115]
[1752865676014,0.69,176.91,176.88,11.81133115]
[1752865676800,17.46356074,176.93,176.88,11.81133115]
[1752865677115,0.69,176.9,176.88,11.81133115]
[1752865677622,17.46360336,176.92,176.84,32.64]
[1752865677918,17.46360336,176.92,176.78,1.623]
[1752865677919,0.69,176.89,176.85,11.81133115]
[1752865678099,11.81133115,176.91,176.83,26.0]
[1752865678301,12.50133115,176.91,176.86,11.81133115]
[1752865678615,0.69,176.9,176.86,11.81133115]
[1752865678816,5.65323082,176.89,176.83,26.0]
[1752865679024,6.34323082,176.89,176.86,11.81133115]
[1752865679522,0.69,176.88,176.86,11.81133115]
[1752865679820,0.69,176.88,176.81,16.78468397]
[1752865680025,0.69,176.88,176.79,22.47107577]
[1752865680026,12.50133115,176.88,176.83,11.81133115]
[1752865680354,12.50133115,176.87,176.79,0.03]
[1752865680528,11.81133115,176.85,176.79,0.03]
[1752865680702,11.81133115,176.85,176.8,11.81133115]
[1752865681019,11.81133115,176.83,176.79,0.03]
[1752865681225,11.81133115,176.8,176.79,0.03]
[1752865681604,0.69,176.8,176.75,0.03]
[1752865681800,11.81133115,176.78,176.75,0.03]
[1752865682017,0.69,176.77,176.75,0.03]
[1752865682212,101.51133115,176.79,176.75,0.03]
[1752865682410,11.81133115,176.78,176.75,0.03]
[1752865682611,0.69,176.77,176.75,0.03]
[1752865683002,0.69,176.76,176.75,0.03]
[1752865683198,11.81133115,176.77,176.75,0.03]
[1752865683442,12.50133115,176.77,176.75,0.03]
[1752865683618,89.7,176.82,176.76,11.81133115]
[1752865683930,89.7,176.82,176.77,11.81133115]
[1752865683931,102.20133115,176.82,176.77,11.81133115]
[1752865684112,29.82760866,176.95,176.81,11.81133115]
[1752865684303,4.67520741,176.99,176.85,8.0464]
[1752865684502,5.65003672,176.99,176.97,11.81133115]
[1752865684728,5.64970296,177.01,176.98,11.81133115]
[1752865684898,0.69,177.0,176.99,11.81133115]
[1752865685104,0.69,177.0,176.92,5.65227221]
[1752865685341,0.69,177.0,176.88,11.81133115]
[1752865685342,0.69,177.0,176.94,11.81133115]
[1752865685509,0.5,176.99,176.88,17.46488157]
[1752865685843,0.5,176.99,176.96,11.81133115]
[1752865685844,0.69,176.98,176.96,11.81133115]
[1752865686134,0.69,176.98,176.9,16.78468397]
[1752865686135,0.69,176.97,176.88,5.65355042]
[1752865686303,0.69,176.97,176.93,11.81133115]
[1752865686502,0.69,176.96,176.92,11.81133115]
[1752865686732,0.69,176.96,176.9,5.65291124]
[1752865686925,17.46169508,176.98,176.89,32.58]
[1752865686926,0.69,176.95,176.89,32.58]
[1752865687134,12.50133115,176.95,176.9,11.81133115]
[1752865687446,12.50133115,176.94,176.89,44.39133115]
[1752865687731,12.50133115,176.93,176.88,11.81133115]
[1752865687901,0.69,176.93,176.87,32.6]
[1752865688104,11.81133115,176.93,176.88,11.81133115]
[1752865688415,6.1108,176.95,176.9,11.81133115]
[1752865688610,10.0,177.05,176.87,32.6]
[1752865688611,0.69,176.99,176.94,11.81133115]
[1752865688830,6.1108,177.01,176.98,11.81133115]
[1752865689129,0.69,177.09,177.0,11.81133115]
[1752865689308,0.2,177.05,177.04,26.0]
[1752865689508,0.2,177.05,177.04,26.67]
[1752865689728,0.2,177.05,177.04,43.45468397]
[1752865690428,0.2,177.05,177.01,0.67]
[1752865690617,0.2,177.05,177.04,11.81133115]
[1752865691130,0.2,177.05,177.04,17.30242139]
[1752865691504,0.2,177.05,177.01,0.67]
[1752865691710,0.2,177.05,177.04,16.63242139]
[1752865691910,0.2,177.05,177.04,49.25242139]
[1752865693150,0.2,177.05,177.04,49.92242139]
[1752865694818,0.2,177.05,177.0,31.64941458]
[1752865695024,0.2,177.05,177.04,16.63242139]
[1752865695219,0.2,177.05,177.01,0.67]
[1752865695435,16.63242139,177.04,176.92,14.13053337]
[1752865695646,0.69,177.04,177.0,16.63242139]
[1752865695813,5.84816549,177.05,177.02,16.63242139]
[1752865696019,6.49816549,177.05,177.03,32.58]
[1752865696321,0.65,177.04,176.97,16.78468397]
[1752865696525,22.28118148,177.03,176.98,49.23242139]
[1752865696734,16.63242139,176.99,176.9,0.67]
[1752865696921,0.65,177.02,176.9,0.67]
[1752865697128,17.28242139,177.02,176.97,16.63242139]
[1752865697331,17.28242139,177.02,176.97,49.25242139]
[1752865697733,12.20475664,177.04,176.99,16.63242139]
[1752865697921,0.65,177.02,176.98,49.23242139]
[1752865698339,16.63242139,177.0,176.97,32.6]
[1752865698525,5.65003672,176.99,176.97,32.6]
[1752865698740,0.65,177.03,176.98,16.63242139]
[1752865698943,0.65,177.02,176.93,22.43663671]
[1752865699131,0.65,177.02,176.94,32.6]
[1752865699329,0.65,177.02,176.98,16.63242139]
[1752865699532,0.65,177.02,176.92,26.0]
[1752865699533,17.28242139,177.02,176.93,26.0]
[1752865699843,17.28242139,177.02,176.97,16.63242139]
[1752865700045,5.64901386,177.03,176.98,32.58]
[1752865700252,17.28242139,177.01,176.97,32.62]
[1752865700427,17.28242139,177.0,176.97,32.62]
[1752865700621,5.65003672,176.99,176.97,32.62]
[1752865700936,6.29972249,177.0,176.97,32.58]
[1752865701325,22.28178423,177.02,176.94,5.65158757]
[1752865701526,0.65,176.99,176.96,16.63242139]
[1752865701743,0.65,176.99,176.95,49.21242139]
[1752865702039,16.63242139,176.99,176.93,26.0]
[1752865702245,17.28242139,176.98,176.94,32.58]
[1752865702450,0.65,176.98,176.94,49.21242139]
[1752865702945,0.65,177.01,176.97,16.63242139]
[1752865703138,6.5563,177.04,177.0,16.63242139]
[1752865703342,6.5563,177.04,177.01,16.63242139]
[1752865703537,6.49815424,177.05,177.02,32.58]
[1752865703739,6.49815424,177.05,177.03,32.6]
[1752865703916,0.65,177.04,177.02,32.6]
[1752865704121,0.65,177.04,177.02,32.58]
[1752865704348,5.84815424,177.05,177.03,16.63242139]
[1752865704349,0.2,177.05,177.03,16.63242139]
[1752865704547,0.2,177.05,177.04,60.08710536]
[1752865704855,0.2,177.05,177.04,65.73554639]
[1752865705219,0.2,177.05,177.04,49.103125]
[1752865705426,0.2,177.05,177.01,14.12288007]
[1752865705427,0.2,177.05,177.01,0.67]
[1752865705620,0.2,177.05,176.99,5.64975595]
[1752865705621,0.2,177.05,177.03,16.63242139]
[1752865706248,0.2,177.05,177.02,16.63242139]
[1752865706448,0.2,177.05,177.04,32.56]
[1752865706833,0.2,177.05,177.04,55.51086242]
[1752865707039,0.2,177.05,177.04,22.28086242]
[1752865707254,0.2,177.05,177.04,49.19242139]
[1752865708054,0.2,177.05,177.04,32.56]
[1752865708431,0.85,177.05,177.04,32.56]
[1752865708624,23.13054338,177.05,177.04,32.56]
[1752865708830,6.49812199,177.05,177.01,32.54]
[1752865709052,16.63242139,177.03,177.01,32.54]
[1752865709369,17.28242139,177.03,177.01,32.54]
[1752865709672,22.48054338,177.05,177.01,32.54]
[1752865709828,0.65,177.04,177.01,32.54]
[1752865710153,0.65,177.04,177.01,32.5]
[1752865710392,0.65,177.03,177.01,32.5]
[1752865710527,16.63242139,177.02,177.01,32.5]
[1752865710729,17.28242139,177.02,177.01,32.5]
[1752865710959,6.2990792,177.02,177.01,32.5]
[1752865711131,22.93150059,177.02,177.01,32.5]
[1752865711329,0.65,177.02,177.01,32.5]
[1752865711628,0.85,177.05,177.01,32.5]
[1752865711845,17.48242139,177.05,177.01,32.5]
[1752865712026,0.2,177.05,177.01,32.5]
[1752865712350,0.85,177.05,177.02,16.63242139]
[1752865712666,5.84814094,177.05,177.01,32.5]
[1752865712839,5.84814094,177.05,177.01,49.13242139]
[1752865713038,12.44677837,177.04,177.01,32.5]
[1752865713247,12.44677837,177.03,177.01,32.5]
[1752865713752,0.65,177.03,177.01,32.5]
[1752865713929,0.65,177.02,177.01,32.5]
[1752865714125,12.44677837,177.02,177.01,32.5]
[1752865714366,12.44677837,177.02,176.93,0.67]
[1752865714666,0.65,177.02,176.94,11.79677837]
[1752865714829,11.79677837,177.0,176.95,11.79677837]
[1752865715029,17.4461767,177.01,176.96,11.79677837]
[1752865715339,17.4461767,177.01,176.94,32.44]
[1752865715340,6.29913104,177.02,176.98,11.79677837]
[1752865715540,17.44590941,177.02,176.97,44.21677837]
[1752865715760,0.65,177.01,176.97,44.21677837]
[1752865716754,6.29947887,177.01,176.97,44.21677837]
[1752865717065,17.44625724,177.01,176.97,32.42]
[1752865717365,0.65,177.0,176.97,32.42]
[1752865717737,17.44625724,177.01,176.97,32.42]
[1752865717936,18.09625724,177.01,176.97,32.42]
[1752865719053,0.65,177.0,176.97,32.42]
[1752865719364,6.4871,177.05,176.99,11.79677837]
[1752865719542,89.9,177.05,177.03,11.79677837]
[1752865719749,89.9,177.05,177.04,11.79677837]
[1752865720051,0.2,177.05,177.04,11.79677837]
[1752865720371,0.2,177.05,177.04,12.46677837]
[1752865720863,0.2,177.05,177.04,18.1152194]
[1752865721244,0.2,177.05,177.04,34.89990337]
[1752865721444,0.2,177.05,177.04,23.103125]
[1752865721662,0.2,177.05,177.04,18.1152194]
[1752865722073,0.2,177.05,177.04,6.31844103]
[1752865722377,0.2,177.05,177.04,18.1152194]
[1752865722872,0.2,177.05,177.04,12.46677837]
[1752865723059,0.2,177.05,177.04,11.79677837]
[1752865723247,0.2,177.05,177.03,44.09677837]
[1752865723757,0.2,177.05,177.04,12.46677837]
[1752865724159,0.2,177.05,177.04,11.79677837]
[1752865724371,0.2,177.05,177.04,12.46677837]
[1752865724742,0.2,177.05,177.04,29.25146234]
[1752865724947,0.2,177.05,177.04,34.89990337]
[1752865725175,0.2,177.05,177.04,23.103125]
[1752865725360,0.2,177.05,177.04,34.89990337]
[1752865726459,0.2,177.05,177.04,18.1152194]
[1752865727295,0.2,177.05,177.04,44.1152194]
[1752865727751,0.2,177.05,177.04,76.3752194]
[1752865728173,0.2,177.05,177.04,70.05677837]
[1752865729870,0.2,177.05,177.04,70.72677837]
[1752865732297,0.2,177.05,177.04,58.93]
[1752865732493,0.2,177.05,177.04,58.26]
[1752865732671,0.2,177.05,177.04,70.05677837]
[1752865732873,6.56812199,177.05,177.04,32.26]
[1752865733267,0.2,177.05,177.04,44.05677837]
[1752865734558,5.84812199,177.05,177.04,44.05677837]
[1752865734771,13.18132199,177.05,177.0,11.79677837]
[1752865734991,0.72,177.04,176.99,11.79677837]
[1752865735170,11.79677837,177.04,177.0,32.12]
[1752865735387,5.6490792,177.02,177.0,32.12]
[1752865736094,6.3690792,177.02,177.0,43.91677837]
[1752865736276,0.72,177.02,177.0,43.91677837]
[1752865736687,0.72,177.04,177.0,43.91677837]
[1752865736887,6.36850098,177.04,177.0,43.91677837]
[1752865737199,11.79677837,177.01,176.96,11.79677837]
[1752865737363,12.51677837,177.0,176.97,32.08]
[1752865737563,12.51677837,177.0,176.95,11.79677837]
[1752865737564,17.44641342,177.01,176.98,32.08]
[1752865737780,0.72,176.99,176.98,32.08]
[1752865738381,5.64963505,177.01,176.98,32.08]
[1752865738694,0.72,177.0,176.98,32.08]
[1752865739799,5.64951717,177.01,176.98,32.08]
[1752865739966,0.72,177.02,176.98,43.87677837]
[1752865740169,0.72,177.02,176.99,11.79677837]
[1752865740367,12.51677837,177.01,176.93,0.67]
[1752865740674,0.72,177.0,176.96,11.79677837]
[1752865740875,107.1452194,177.04,176.99,11.79677837]
[1752865741072,11.79677837,177.01,176.93,5.65186598]
[1752865741281,0.72,177.0,176.95,11.79677837]
[1752865741496,90.42,176.99,176.96,31.98]
[1752865741687,89.7,176.99,176.96,31.98]
[1752865741989,102.21677837,176.98,176.93,11.79677837]
[1752865742168,0.72,176.97,176.93,43.75677837]
[1752865742374,5.65131393,176.95,176.93,31.96]
[1752865742588,0.72,176.94,176.93,31.96]
[1752865742899,0.72,176.94,176.91,31.94]
[1752865743066,0.72,176.93,176.91,31.94]
[1752865743580,6.3296,176.95,176.92,11.79677837]
[1752865743781,6.3296,176.95,176.91,31.94]
[1752865743985,6.3296,176.95,176.93,11.79677837]
[1752865744200,6.3296,176.95,176.93,43.71677837]
[1752865744607,6.3296,176.95,176.94,11.79677837]
[1752865745012,0.72,176.97,176.94,11.79677837]
[1752865745311,0.72,176.97,176.93,31.92]
[1752865745312,6.37071535,176.97,176.93,31.92]
[1752865745525,6.37071535,176.97,176.95,11.79677837]
[1752865745700,0.72,176.97,176.95,11.79677837]
[1752865746016,0.72,176.96,176.93,31.92]
[1752865746199,11.79677837,176.94,176.87,26.0]
[1752865746395,5.65227221,176.92,176.88,43.67677837]
[1752865746704,0.72,176.91,176.88,31.88]
[1752865746905,11.79677837,176.9,176.85,11.79677837]
[1752865747096,19.11127837,176.89,176.85,31.86]
[1752865747300,12.51677837,176.88,176.85,31.86]
[1752865747498,12.51677837,176.87,176.83,31.86]
[1752865747698,11.79677837,176.87,176.83,31.86]
[1752865747931,0.72,176.86,176.83,31.86]
[1752865748306,0.72,176.86,176.82,43.65677837]
[1752865748507,6.5945,176.89,176.85,11.79677837]
[1752865748710,6.37258506,176.92,176.88,11.79677837]
[1752865748900,6.37258506,176.92,176.89,11.79677837]
[1752865749301,6.37258506,176.92,176.9,11.79677837]
[1752865749502,6.37258506,176.92,176.87,31.84]
[1752865749707,0.72,176.91,176.78,26.0]
[1752865749905,0.72,176.91,176.8,31.82]
[1752865749906,11.79677837,176.88,176.8,31.82]
[1752865750098,12.51677837,176.87,176.8,31.82]
[1752865750298,12.51677837,176.87,176.82,11.79677837]
[1752865750501,5.65450947,176.85,176.8,31.82]
[1752865750699,12.51677837,176.84,176.79,11.85677837]
[1752865751002,11.87410947,176.85,176.79,11.85677837]
[1752865751003,0.72,176.83,176.79,0.06]